Cogmind - Beta 15 @@@ ROGUE MODE // 2025.10.08 @ 14:53:49 Player: Bikerider58 Result: Destroyed by as-15310 with Assembled Rifle Performance ------------- Evolutions (0) 0 Regions Visited (2) 400 Robots Destroyed (23) 115 Value Destroyed (410) 410 Prototype IDs (4) 80 Alien Tech Used (0) 0 Bonus (0) 0 TOTAL SCORE: 1005 Bonus ------- None Cogmind --------- Core Integrity 0/250 Matter 181/300 Energy 79/100 System Corruption 4% Temperature Cool (0) Movement Core (450) Ox8 Location -10/Mines Parts ------- > --- POWER (1) -------- (None) > --- PROPULSION (2) --- (None) > --- UTILITY (2) ------ Large Storage Unit > --- WEAPON (2) ------- Improved Light Cannon Mining Claw > --- INVENTORY (15) --- Reinforced Ion Engine Light Treads Armored Treads Armored Treads Improved Heat Sink Large Matter Pod (150) Advanced Visual Processing Unit Transport Network Coupler EM Pulse Cannon Improved Light Cannon Datajack Axe Peak State ------------ > --- POWER ------------ Reinforced Ion Engine > --- PROPULSION ------- Light Treads Light Treads > --- UTILITY ---------- Large Storage Unit Hardlight Generator > --- WEAPON ----------- Shock Rifle Improved Light Cannon > --- INVENTORY -------- Reinforced Ion Engine Light Treads Armored Treads Armored Treads Improved Heat Sink Large Matter Pod Advanced Visual Processing Unit Transport Network Coupler Minigun Improved Light Cannon Improved Light Cannon Improved Light Cannon Datajack Mining Claw Axe [Rating: 16] Favorites ----------- Power Reinforced Ion Engine Engine Reinforced Ion Engine Propulsion Light Treads Treads Light Treads Wheel Wheel Utility Large Storage Unit Device Seismic Detector Storage Large Storage Unit Weapon Assault Rifle Energy Gun Shock Rifle Ballistic Gun Assault Rifle Ballistic Cannon Improved Light Cannon Launcher Mini Grenade Launcher Slashing Weapon Mining Claw Build | -11 -10 -10 ------- Run | Yrd Mat Min Slots Evolved . | . . . Power . | . . . Propulsion . | . . . Utility . | . . . Weapon . | . . . Parts Attached 23 | 8 4 11 Power 2 | 1 1 . Engine 2 | 1 1 . Core . | . . . Reactor . | . . . Propulsion 5 | 2 . 3 Treads 3 | 2 . 1 Leg . | . . . Wheel 2 | . . 2 Hover . | . . . Flight . | . . . Utility 6 | 3 2 1 Device 4 | 2 1 1 Storage 2 | 1 1 . Processor . | . . . Hackware . | . . . Protection . | . . . Artifact . | . . . Weapon 10 | 2 1 7 Energy Gun 1 | . . 1 Energy Cannon . | . . . Ballistic Gun 3 | 2 1 . Ballistic Cannon 3 | . . 3 Launcher 2 | . . 2 Special Weapon . | . . . Impact Weapon . | . . . Slashing Weapon 1 | . . 1 Piercing Weapon . | . . . Special Melee Weapon . | . . . Unidentified Prototypes . | . . . Corrupted Parts 1 | . . 1 System Corruption 1 | . . 1 Parts Lost 10 | . 2 8 Power 1 | . . 1 Propulsion 2 | . . 2 Utility 2 | . 1 1 Weapon 5 | . 1 4 Highest Loss Streak 4 | . 1 4 To Critical Strikes . | . . . Average Backups 10 | 1 9 14 Power 1 | . 1 1 Propulsion 1 | . 1 2 Utility 2 | . 2 3 Weapon 3 | 1 3 5 Tool/Special . | . . . Unused Backups 17 | . 2 15 Power 3 | . 1 2 Propulsion 5 | . 1 4 Utility 3 | . . 3 Weapon 5 | . . 5 Tool/Special 1 | . . 1 Average Slot Usage (%) 93 | . 94 91 Engine 13 | . 14 11 Treads 26 | . 27 21 Wheel 1 | . . 5 Device 9 | . 9 11 Storage 14 | . 14 14 Energy Gun 1 | . . 6 Ballistic Gun 22 | . 28 2 Ballistic Cannon 2 | . . 12 Peak Build Rating 16 | 7 12 16 Average Rating 8 | 5 8 13 On Entrance 6 | . 7 12 Naked Turns . | . . . Heaviest Build 43 | 15 34 43 Greatest Support 40 | 40 40 40 Greatest Overweight (x) 8 | 1 . 8 Average Overweight (x) . | . . . Largest Inventory Capacity 15 | 8 15 15 Average Capacity 14 | 7 14 15 Most Carried 15 | 4 15 15 Average Carried 10 | 1 9 14 Final Capacity 15 | 8 15 15 Final Carried 14 | 2 14 12 Class Distribution -------------------- 100% | Mutant Dominant Class ---------------- Mutant | -10/Materials Mutant | -10/Mines Resources | -11 -10 -10 ----------- Run | Yrd Mat Min Matter Collected 984 | 316 443 225 Remotely 77 | 77 . . Salvage Created 716 | 116 489 111 Parts 48 | 9 29 10 Haulers Intercepted 2 | . 2 . Recyclers Shooed 2 | . . 2 Parts Field Recycled . | . . . Retrieved Matter . | . . . Parts Self-Destructed . | . . . Prevented . | . . . Kills | -11 -10 -10 ------- Run | Yrd Mat Min Combat Hostiles Destroyed 24 | . 11 13 Guns 11 | . 11 . Cannons 2 | . . 2 AOE 11 | . . 11 Classes Destroyed 9 | 2 5 2 Worker 1 | . 1 . Tunneler 4 | 2 1 1 Hauler 2 | . 2 . Recycler 2 | 1 . 1 Watcher 2 | . 2 . Swarmer 5 | . 5 . Grunt 6 | . 6 . Demolisher 1 | . . 1 Assembled 12 | . . 12 Best Kill Streak 12 | 3 4 12 Combat Bots Only 8 | . 4 8 Max Kills in Single Turn 2 | 1 2 2 Gunslinging . | . . . Exploded 2 | . . 2 Melee . | . . . Uniques/NPCs Destroyed . | . . . Combat | -11 -10 -10 -------- Run | Yrd Mat Min Hostile Shots Fired 124 | . 77 47 Missed 30 | . 23 7 Hits 94 | . 54 40 Melee 2 | . . 2 Projectile 92 | . 54 38 AOE 15 | . . 15 Damage Taken 1709 | . 636 1073 Core 258 | . 125 133 Absorbed by Shields 16 | . . 16 Regen/Repaired (Parts) 114 | . 114 . Core Remaining (%) 100 | 100 . . Volleys Fired 89 | 6 53 30 Largest 2 | 2 2 2 Hottest 83 | 40 40 83 Shots Fired 155 | 12 105 38 Gun 120 | 12 105 3 Cannon 16 | . . 16 Launcher 19 | . . 19 Special . | . . . Kinetic 133 | 12 105 16 Thermal . | . . . Explosive 19 | . . 19 Electromagnetic 3 | . . 3 Robot Hit Streak 10 | 8 10 4 Robot Miss Streak 3 | 1 3 3 Penetration Max . | . . . Secondary Targets 3 | . 3 . Max Gunslinging Chain 1 | . 1 . Shots Hit Robots 102 | 9 74 19 Core Hits 64 | 4 28 32 Critical Kills . | . . . Critical Parts Destroyed . | . . . Critical Strikes 1 | . . 1 Blast 1 | . . 1 Melee Attacks . | . . . Impact . | . . . Slashing . | . . . Piercing . | . . . Sneak Attacks . | . . . Combat Hostiles . | . . . Follow-up Attacks . | . . . Damage Inflicted 2284 | 109 903 1272 Guns 1024 | 109 900 15 Cannons 252 | . . 252 Explosions 1005 | . . 1005 Melee . | . . . Ramming 3 | . 3 . Kinetic 1261 | 109 900 252 Thermal . | . . . Explosive 1005 | . . 1005 Electromagnetic 15 | . . 15 Impact . | . . . Slashing . | . . . Piercing . | . . . Highest Corruption 4 | . . 4 Average Corruption 1 | . . 1 Corruption Purged . | . . . Corruption Blocked . | . . . Effects 1 | . . 1 Energy Discharges 1 | . . 1 Overload Shots . | . . . Overflow Damage 44 | . . 44 Projectiles . | . . . Explosions 44 | . . 44 Melee . | . . . Knockbacks 1 | . . 1 Impact . | . . . Kinetic 1 | . . 1 Secondary . | . . . Self-Inflicted Damage 148 | . . 148 Shots 7 | . . 7 Rammed 1 | . 1 . Targets Rammed 1 | . 1 . Kicked . | . . . Crushed . | . . . Highest Temperature 141 | . 46 141 Average Temperature 41 | . 14 87 Received Heat Transfer 312 | . 312 . Siege Activations . | . . . Martial Activations . | . . . Shielding Activations . | . . . Robots Disrupted . | . . . Combat Hostiles . | . . . Robots Corrupted . | . . . Combat Hostiles . | . . . Parts Fried . | . . . Impact Corruptions . | . . . Robots Melted . | . . . Combat Hostiles . | . . . Parts Melted . | . . . Heat Transferred . | . . . Parts Sabotaged . | . . . Parts Stolen . | . . . Parts Stripped . | . . . Power Chain Reactions . | . . . Alert | -11 -10 -10 ------- Run | Yrd Mat Min Maximum Alert Level . | . . . Low Security (%) 100 | 100 100 100 Level 1 . | . . . Level 2 . | . . . Level 3 . | . . . Level 4 . | . . . Level 5 . | . . . High Security . | . . . Max Security . | . . . Peak Influence 109 | 10 109 72 Initial . | . . . Average 27 | 1 32 15 Influence Increases 503 | 15 363 125 Destroy 0b10 Robot/C 240 | . 220 20 Destroy 0b10 Robot/NC 55 | 15 30 10 Destroy Leader 68 | . 58 10 Successful Hack 40 | . 40 . Destroy Structure 55 | . . 55 Lose Combat Pursuer 45 | . 15 30 Influence Decreases 503 | 15 363 125 Time Decay 363 | 15 288 60 Lost Part 85 | . 20 65 Purge Threat 55 | . 55 . Squads Dispatched 2 | . 1 1 Investigation 2 | . 1 1 Extermination . | . . . Reinforcement . | . . . Assault . | . . . Garrison . | . . . Intercept . | . . . Searches Triggered . | . . . Construction Impeded . | . . . Haulers Reinforced . | . . . Active Scanning Responses . | . . . Cargo Convoy Interrupts . | . . . Stealth | -11 -10 -10 --------- Run | Yrd Mat Min Distress Signals 1 | . 1 . Communications Jammed . | . . . Distress Signals . | . . . Times Spotted 37 | . 16 21 Peak Tracking Total 6 | . 5 6 Tactical Retreats 3 | . 1 2 Traps | -11 -10 -10 ------- Run | Yrd Mat Min Traps Triggered 1 | . 1 . Indirectly . | . . . Trap Hack Attempts . | . . . Triggered . | . . . Disarmed . | . . . Reprogrammed . | . . . Reused . | . . . Traps Extracted . | . . . Installed . | . . . Triggered . | . . . Machines | -11 -10 -10 ---------- Run | Yrd Mat Min Machines Disabled . | . . . Max in Single Turn . | . . . Machines Repaired . | . . . Machines Dismantled . | . . . Machines Sabotaged . | . . . Overloaded Fab Kills . | . . . Hacking | -11 -10 -10 --------- Run | Yrd Mat Min Machines Accessed 10 | . 8 2 Terminals 7 | . 7 . Fabricators . | . . . Repair Stations 1 | . 1 . Recycling Units . | . . . Scanalyzers . | . . . Garrison Access . | . . . Total Hacks 37 | . 35 2 Successful 26 | . 24 2 Failed 10 | . 10 . Catastrophic . | . . . Database Lockouts 1 | . 1 . Manual 18 | . 18 . Terminals 31 | . 31 . Fabricators . | . . . Repair Stations 4 | . 4 . Recycling Units . | . . . Scanalyzers . | . . . Garrison Access . | . . . Terminal Hacks 17 | . 15 2 Robot Analysis 1 | . 1 . Prototype ID Bank 2 | . 2 . Open Door 2 | . . 2 Terminal Index 1 | . 1 . Recycling Unit Index 1 | . 1 . Alert Level 1 | . 1 . Unreport Threat 1 | . 1 . Locate Traps 1 | . 1 . Maintenance Status 1 | . 1 . Hauler Manifests 2 | . 2 . Registered Components 1 | . 1 . Zone Layout 3 | . 3 . Fabricator Hacks . | . . . Repair Station Hacks 4 | . 4 . Scan Component 2 | . 2 . Repair 2 | . 2 . Recycling Unit Hacks . | . . . Scanalyzer . | . . . Garrison Access Hacks . | . . . Unauthorized Hacks 5 | . 5 . Terminals 5 | . 5 . Botnet 2 | . 2 . Operators 1 | . 1 . Skim 2 | . 2 . Fabricators . | . . . Repair Stations . | . . . Recycling Units . | . . . Scanalyzers . | . . . Garrison Access . | . . . Data Cores Recovered . | . . . Used . | . . . Hacking Detections 6 | . 6 . Full Trace Events . | . . . Feedback Events . | . . . Feedback Blocked . | . . . Robot Schematics Acquired . | . . . Robots Built . | . . . Authchips . | . . . Time . | . . . Total Robot Build Rating . | . . . Part Schematics Acquired . | . . . Parts Built . | . . . Authchips . | . . . Time . | . . . Total Part Build Rating . | . . . Parts Repaired 2 | . 2 . Time 64 | . 64 . Parts Recycled . | . . . Recycled Matter . | . . . Retrieved Matter . | . . . Retrieved Components . | . . . Parts Scanalyzed . | . . . Part Schematics Acquired . | . . . Parts Damaged . | . . . Bothacking | -11 -10 -10 ------------ Run | Yrd Mat Min Used RIF Installer . | . . . Robots Hacked . | . . . Non-combat . | . . . Combat . | . . . Robot Hacks Applied . | . . . Relay Couplers Released . | . . . Fabnet Peak Effective % . | . . . Robots Rewired . | . . . Allies Hacked . | . . . Hacks Repelled . | . . . Allies | -11 -10 -10 -------- Run | Yrd Mat Min Total Allies . | . . . Largest Group . | . . . Highest-Rated Group . | . . . Highest-Rated Ally . | . . . Total Orders . | . . . Ally Attacks . | . . . Total Damage . | . . . Kills . | . . . Allies Corrupted . | . . . Allies Melted . | . . . Intel | -11 -10 -10 ------- Run | Yrd Mat Min Active Infowar (turns) 733 | 29 704 . Seismic 733 | 29 704 . Robot Analysis Total 1 | . 1 . Derelict Logs Recovered . | . . . Drone Launches . | . . . Drone Recoveries . | . . . Exploration | -11 -10 -10 ------------- Run | Yrd Mat Min Turns Passed 1523 | 112 1100 311 Spaces Moved 668 | 51 504 113 Core 7 | 6 . 1 Treads 630 | 45 504 81 Legs . | . . . Wheels 31 | . . 31 Hover . | . . . Flight . | . . . Fastest Speed 50 | 50 160 95 Average Speed 164 | 150 160 188 Slowest Speed 450 | 160 160 450 Overloaded Moves . | . . . Propulsion Burnouts . | . . . Robots Hopped . | . . . Potential Cave-ins . | . . . Cave-ins Triggered . | . . . Exploration Rate (%) 40 | 6 78 36 Regions Visited 2 Branch Regions 1 Pre-discovered Areas . | . . . Known Exits Taken . | . . . Unknown Exits Taken 2 | 1 1 . Scrap Searched . | . . . Spaces Dug . | . . . Terrain Destroyed 103 | . . 103 Melee . | . . . Projectile 2 | . . 2 AOE 101 | . . 101 Terrain Rammed . | . . . Walls Destroyed . | . . . Machines Disabled . | . . . Actions | -11 -10 -10 --------- Run | Yrd Mat Min Total 946 | 72 696 178 Wait 120 | 3 112 5 Move 666 | 50 503 113 Hop . | . . . Pick Up 29 | 4 17 8 Fast Attach 12 | 6 2 4 Attach 8 | 2 1 5 Detach 1 | . . 1 Swap 4 | . 2 2 Drop 16 | 1 5 10 Fire 89 | 6 53 30 Melee . | . . . Ram . | . . . Kick . | . . . Crush 1 | . 1 . Escape Stasis . | . . . Rewire . | . . . Trap . | . . . Miscellaneous . | . . . Route ------- -11/Scrapyard -10/Materials (discovered 5 exits: [*Mat x3] / *Min x2) -10/Mines (discovered 1 exit: [*Mat]) History --------- Turn | Location | Event 5 | -11/Scrapyard | Discovered new exit (range 15) 113 | -11/Scrapyard | Entered Materials 162 | -10/Materials | Discovered new exit (range 17) 310 | -10/Materials | Build established: Mutant 402 | -10/Materials | Central database locked down 600 | -10/Materials | Discovered new exit (range 15) 944 | -10/Materials | Discovered new exit (range 13) 1054 | -10/Materials | Discovered new exit (range 10) 1088 | -10/Materials | Discovered new exit (range 12) 1141 | -10/Materials | Repaired Lgt. Treads 1181 | -10/Materials | Repaired Imp. Heat Sink 1213 | -10/Materials | Entered Mines 1219 | -10/Mines | Met a Derelict shopkeep closing up shop 1299 | -10/Mines | Met a Derelict who couldn't figure out how to use a Trap Extractor 1364 | -10/Mines | Assembled infested the area 1369 | -10/Mines | Assisted by a Guerilla fighting off Assembled 1381 | -10/Mines | Core integrity fell below 50% 1495 | -10/Mines | Discovered new exit (range 9) 1506 | -10/Mines | Destroyed 8 combat bots 1512 | -10/Mines | Lost 4 parts (1p1u2w) 1517 | -10/Mines | Core integrity fell below 20% 1524 | -10/Mines | Destroyed by as-15310 with Assembled Rifle Last Messages --------------- 01498_ K-01 Serf collects debris. 01502_ U-05 Engineer lays Concrete. 01505_ The unstable cave ceiling collapses. 01505_ K-01 Serf collects debris. 01506_ U-05 Engineer lays Concrete. 01506_ Acquired 22 matter. 01507_ U-05 Engineer lays Concrete. 01509_ The unstable cave ceiling collapses. 01510_ U-05 Engineer lays Concrete. 01513_ Wheel destroyed. 01514_ Destroyed Wheel. 01514_ as-25372 destroyed. 01514_ as-81368 destroyed. 01518_ The unstable cave ceiling collapses. 01518_ Mni. Grenade Launcher destroyed. 01518_ System corrupted by crushing effect (+3). 01520_ The unstable cave ceiling collapses. 01520_ U-05 Engineer destroyed. 01521_ Knocked back. 01523_ U-05 Engineer destroyed. Map ----- +----------------------------------------------------+ | #??????????????????????????????? | | ! #??????### ???????????????????? | | = *= ##?????# ???????????????????? | | [ # ###?????# ???????????????????? | | ! # #####??????# #???????????????????? | | #### ##????????## #??????###??????????? | | ???# #????????## #????## ##?????????? | | ???## #????##### ?????# < #?????????? | | ????## #???## ???????# #?????????? | | ?????## ##### ????????## #?????????? | | ??????## # # #?????##### #?????????? | | ???????# # # ##????## ##????????? | | ???????# # # ####?# """ #????????? | | ???????# ### !* * ### """ ##???????? | | ???????# =%= ! # #?# """ #???????? | | ???????# ###! ### a ## #??????? | | ???????# #### ! ! ## a# ##????? #?????? | | ???????# # ## # ####?????????????? | | ???????# # "#???????????????? | | ???????## ##### ####???????????????? | | ????????####??# #??????????????????? | | ??????????????## ! #??????????????????? | | ???????????????## # #??????????????????? | | ???????????????## ## # ##?????????????????? | | ????????????????#### #?????????????????? | | ???????????????????# @ #?????????????????? | | ???????????????????## !%| #?????????????????? | | ????????????????????# *a ##?????????????????? | | ????????????????????## a #?????????????????? | | ?????????????????????### ##?????????????????? | | ????????????????????? #?????????????????? | | ???????????????????? #????????????????? | | ???????????????????# =#????????????????? | | ???????????????????## !%#????????????????? | | ????????????????????# # !#????????????????? | | ????????????????????# ## ????????????????? | | ????????????????????## #?# ???????????????? | | ?????????????????????#######?? ??????????????? | | ?????????????????????????????? ??????????????? | | ??????????????????????????????? ???????????????? | | ?????????????????????????????????????????????????? | | ?????????????????????????????????????????????????? | | ?????????????????????????????????????????????????? | | ?????????????????????????????????????????????????? | | ?????????????????????????????????????????????????? | | ?????????????????????????????????????????????????? | | ?????????????????????????????????????????????????? | | ?????????????????????????????????????????????????? | | ?????????????????????????????????????????????????? | | ?????????????????????????????????????????????????? | +----------------------------------------------------+ Best States ------------- Heat Dissipation 39 Energy Generation 12 Energy Capacity 265 Matter Stores 300 Matter Capacity 300 Sight Range 16 Terrain Scan Density 10 Evasion (%) 41 Recoil Reduction 2 Item Schematics ----------------- None Robot Schematics ------------------ None Fabricated ------------ Nothing Repaired ---------- Lgt. Treads | 37% | -10/Materials Imp. Heat Sink | 32% | -10/Materials Alien Tech Used ----------------- None Achievements -------------- None Challenges ------------ None Game ------ Seed RiotMagneticReconfigurator Manual? 0 Play Time 00:17:17 Cumulative 122.5 hours Start 2025.10.08 @ 14:38:52 End 2025.10.08 @ 14:53:49 Sessions 1 Manual Loads 0 Difficulty Rogue Special Mode None Game No. 65 Rogue 60 Adventurer 5 Explorer 0 Win Type - Total 2 Types 2/0/0/0/0/0/0/0/0/0 Lore% 54 Gallery% 58 Achievement% 53 Wizard Run 0 Options --------- Layout 1 ASCII 0 Keyboard 0 Movement Numpad Keybinds 0 Fullscreen 1 Font 24/Smallcaps Map View 50x35 Zoom Use 0% Tactical HUD 1 Map Filters NONE Filters NONE Steam 1 RUN: 2e408811-759b-4d4b-b003-b60f6b0bb264